fUSD/lending_fUSD_20240422
["ID","MTS","AMOUNT","RATE_DAILY","PERIOD"]
[323220187,1713817960083,-501.17928128,0.00015616,2]
[323220188,1713817960093,-500.0,0.00015616,2]
[323220189,1713817960103,-2729.9,0.00015616,2]
[323220190,1713817960112,-555.29,0.00015616,2]
[323220191,1713817960122,-2620.59,0.00015616,2]
[323220192,1713817960132,-1646.2,0.00015616,2]
[323220193,1713817960142,-3612.79,0.00015616,2]
[323220194,1713817960152,-3159.44,0.00015616,2]
[323220195,1713817960161,-5252.04,0.00015616,2]
[323220196,1713817960171,-500.0,0.00015616,2]
[323220197,1713817960181,-500.0,0.00015616,2]
[323220198,1713817960191,-500.0,0.00015616,2]
[323220199,1713817960200,-500.0,0.00015616,2]
[323220200,1713817960210,-503.93929216,0.00015616,2]
[323220201,1713817960219,-1523.59,0.00015616,2]
[323220202,1713817960228,-608.44,0.00015616,2]
[323220203,1713817960238,-13095.85,0.00015616,2]
[323220204,1713817960248,-5833.37,0.00015616,2]
[323220205,1713817960257,-6897.16,0.00015616,2]
[323220206,1713817960267,-6152.13,0.00015616,2]
[323220207,1713817960278,-3299.3,0.00015616,2]
[323220208,1713817960288,-1238.36,0.00015616,2]
[323220209,1713817960297,-13435.6,0.00015616,2]
[323220210,1713817960307,-3819.44,0.00015616,2]
[323220211,1713817960317,-943.08,0.00015616,2]
[323220212,1713817960327,-780.85,0.00015616,2]
[323220213,1713817960337,-500.0,0.00015616,2]
[323220214,1713817960347,-203.56654902,0.00015616,2]
[323220215,1713817960357,-636.41459256,0.00015616,2]
[323220216,1713817960366,-500.0,0.00015616,2]
[323220217,1713817960376,-1406.96,0.00015616,2]
[323220218,1713817960387,-769.83,0.00015616,2]
[323220219,1713817960398,-500.0,0.00015616,2]
[323220220,1713817960408,-722.61,0.00015616,2]
[323220221,1713817960420,-930.5,0.00015616,2]
[323220222,1713817960430,-500.0,0.00015616,2]
[323220223,1713817960440,-2367.11,0.00015616,2]
[323220224,1713817960450,-1025.63,0.00015616,2]
[323220225,1713817960460,-7256.26,0.00015616,2]
[323220226,1713817960469,-10754.04,0.00015616,2]
[323220227,1713817960478,-500.0,0.00015616,2]
[323220228,1713817960487,-634.73,0.00015616,2]
[323220229,1713817960497,-500.0,0.00015616,2]
[323220230,1713817960507,-500.0,0.00015616,2]
[323220231,1713817960517,-2911.37,0.00015616,2]
[323220232,1713817960528,-530.36,0.00015616,2]
[323220233,1713817960537,-6189.49,0.00015616,2]
[323220234,1713817960546,-943.08,0.00015616,2]
[323220235,1713817960555,-4556.59,0.00015616,2]
[323220236,1713817960564,-1833.33,0.00015616,2]
[323220237,1713817960574,-523.92,0.00015616,2]
[323220238,1713817960583,-1487.75,0.00015616,2]
[323220239,1713817960593,-664.1,0.00015616,2]
[323220240,1713817960606,-1392.71,0.00015616,2]
[323220241,1713817960615,-500.0,0.00015616,2]
[323220242,1713817960624,-4694.74,0.00015616,2]
[323220243,1713817960633,-1874.89,0.00015616,2]
[323220244,1713817960643,-1392.18,0.00015616,2]
[323220245,1713817960654,-819.7,0.00015616,2]
[323220246,1713817960665,-3597.55,0.00015616,2]
[323220247,1713817960675,-806.58,0.00015616,2]
[323220248,1713817960684,-3150.13,0.00015616,2]
[323220249,1713817960695,-1514.8,0.00015616,2]
[323220250,1713817960705,-500.0,0.00015616,2]
[323220251,1713817960715,-702.44,0.00015616,2]
[323220252,1713817960724,-1715.22,0.00015616,2]
[323220253,1713817960733,-1604.37,0.00015616,2]
[323220254,1713817960743,-1853.0,0.00015616,2]
[323220255,1713817960752,-500.0,0.00015616,2]
[323220256,1713817960761,-1000.0,0.00015648,2]
[323220257,1713817960770,-217.65,0.00015694,2]
[323220258,1713817960782,-1000.0,0.0001579,2]
[323220259,1713817960792,-175.21199353,0.000158,2]
[323220260,1713817960801,-4257.8,0.00015814,2]
[323220261,1713817960811,-150.23,0.00015825,2]
[323220262,1713817960822,-166.97,0.00015831,2]
[323220263,1713817960831,-167.03,0.00015831,2]
[323220264,1713817960840,-609.0,0.00015851,2]
[323220265,1713817960851,-1858.0,0.00015851,2]
[323220266,1713817960860,-257.0,0.00015851,2]
[323220267,1713817960869,-807.0,0.00015851,2]
[323220268,1713817960882,-437.0,0.00015851,2]
[323220269,1713817960894,-2445.0,0.00015851,2]
[323220270,1713817960903,-1474.0,0.00015851,2]
[323220271,1713817960913,-402.0,0.00015851,2]
[323220272,1713817960923,-3120.0,0.00015851,2]
[323220273,1713817960932,-214.0,0.00015851,2]
[323220274,1713817960942,-1640.0,0.00015851,2]
[323220275,1713817960954,-1139.0,0.00015851,2]
[323220276,1713817960966,-443.0,0.00015851,2]
[323220277,1713817960975,-2705.0,0.00015851,2]
[323220278,1713817961098,-37689.0,0.00015851,2]
[323220279,1713817961109,-5893.0,0.00015851,2]
[323220280,1713817961117,-5729.0,0.00015851,2]
[323220281,1713817961127,-462.0,0.00015851,2]
[323220282,1713817961136,-2295.0,0.00015851,2]
[323220283,1713817961146,-32915.13660279,0.0001588,2]
[323220284,1713817961155,-331.0,0.0001588,2]
[323220285,1713817961164,-1058.97,0.0001589,2]
[323220286,1713817961174,-500.0,0.0001589,2]
[323220287,1713817961183,-613.72,0.0001589,2]
[323220288,1713817961192,-540.41,0.0001589,2]
[323220289,1713817961201,-500.0,0.0001589,2]
[323220290,1713817961212,-500.0,0.0001589,2]
[323220291,1713817961221,-1669.03,0.0001589,2]
[323220292,1713817961230,-1371.14,0.0001589,2]
[323220293,1713817961239,-500.0,0.0001589,2]
[323220294,1713817961248,-776.94,0.0001589,2]
[323220295,1713817961257,-500.0,0.0001589,2]
[323220296,1713817961266,-587.95,0.0001589,2]
[323220297,1713817961275,-1126.73,0.0001589,2]
[323220298,1713817961285,-1027.81,0.0001589,2]
[323220299,1713817961294,-500.0,0.0001589,2]
[323220300,1713817961305,-895.63,0.0001589,2]
[323220301,1713817961315,-500.0,0.0001589,2]
[323220302,1713817961324,-500.0,0.0001589,2]
[323220303,1713817961333,-560.73,0.0001589,2]
[323220304,1713817961342,-500.0,0.0001589,2]
[323220305,1713817961351,-500.0,0.0001589,2]
[323220306,1713817961360,-541.08,0.0001589,2]
[323220307,1713817961369,-500.0,0.0001589,2]
[323220308,1713817961378,-706.11,0.0001589,2]
[323220309,1713817961388,-629.02,0.0001589,2]
[323220310,1713817961398,-584.95,0.0001589,2]
[323220311,1713817961409,-500.0,0.0001589,2]
[323220312,1713817961418,-1117.61,0.0001589,2]
[323220313,1713817961427,-500.0,0.0001589,2]
[323220314,1713817961436,-1070.74,0.0001589,2]
[323220315,1713817961445,-1292.86,0.0001589,2]
[323220316,1713817961454,-1409.26,0.0001589,2]
[323220317,1713817961464,-895.28,0.0001589,2]
[323220318,1713817961473,-627.63,0.0001589,2]
[323220319,1713817961483,-1508.56,0.0001589,2]
[323220320,1713817961492,-500.0,0.0001589,2]
[323220321,1713817961501,-158.02039235,0.0001589,2]
[323220322,1713817961511,-632.96,0.0001589,2]
[323220323,1713817961520,-500.0,0.0001589,2]
[323220324,1713817961530,-1031.2,0.0001589,2]
[323220325,1713817961539,-500.0,0.0001589,2]
[323220326,1713817961548,-500.0,0.0001589,2]
[323220327,1713817961560,-718.9,0.0001589,2]
[323220328,1713817961570,-969.56,0.0001589,2]
[323220329,1713817961579,-500.0,0.0001589,2]
[323220330,1713817961588,-625.43346819,0.0001589,2]
[323220331,1713817961597,-500.0,0.0001589,2]
[323220332,1713817961607,-500.0,0.0001589,2]
[323220333,1713817961617,-1375.45,0.0001589,2]
[323220334,1713817961627,-643.12,0.0001589,2]
[323220335,1713817961637,-1338.67,0.0001589,2]
[323220336,1713817961647,-1299.86,0.0001589,2]
[323220337,1713817961656,-1086.66,0.0001589,2]
[323220338,1713817961665,-1120.16,0.0001589,2]
[323220339,1713817961674,-960.06,0.0001589,2]
[323220340,1713817961683,-500.0,0.0001589,2]
[323220341,1713817961693,-534.21,0.0001589,2]
[323220342,1713817961703,-753.19,0.0001589,2]
[323220343,1713817961713,-500.0,0.0001589,2]
[323220344,1713817961723,-811.84,0.0001589,2]
[323220345,1713817961734,-500.0,0.0001589,2]
[323220346,1713817961743,-1092.53,0.0001589,2]
[323220347,1713817961752,-500.0,0.0001589,2]
[323220348,1713817961761,-546.54,0.0001589,2]
[323220349,1713817961771,-1749.53,0.0001589,2]
[323220350,1713817961780,-500.0,0.0001589,2]
[323220351,1713817961789,-500.0,0.0001589,2]
[323220352,1713817961798,-500.0,0.0001589,2]
[323220353,1713817961807,-1083.17,0.0001589,2]
[323220354,1713817961816,-500.0,0.0001589,2]
[323220355,1713817961826,-500.0,0.0001589,2]
[323220356,1713817961835,-500.0,0.0001589,2]
[323220357,1713817961844,-500.0,0.0001589,2]
[323220358,1713817961853,-1474.11,0.0001589,2]
[323220359,1713817961862,-1939.69,0.0001589,2]
[323220360,1713817961871,-1150.37,0.0001589,2]
[323220361,1713817961883,-500.0,0.0001589,2]
[323220362,1713817961892,-1191.57,0.0001589,2]
[323220363,1713817961900,-169.2740145,0.0001589,2]
[323220364,1713817961910,-873.37,0.0001589,2]
[323220365,1713817961919,-500.0,0.0001589,2]
[323220366,1713817961928,-548.01,0.0001589,2]
[323220367,1713817961937,-1713.21,0.0001589,2]
[323220368,1713817961946,-860.95,0.0001589,2]
[323220369,1713817961957,-778.64,0.0001589,2]
[323220370,1713817961966,-583.38,0.0001589,2]
[323220371,1713817961975,-983.83,0.0001589,2]
[323220372,1713817961985,-848.86,0.0001589,2]
[323220373,1713817961994,-500.0,0.0001589,2]
[323220374,1713817962003,-1645.42,0.0001589,2]
[323220375,1713817962012,-991.23,0.0001589,2]
[323220376,1713817962021,-650.08,0.0001589,2]
[323220377,1713817962030,-919.27,0.0001589,2]
[323220378,1713817962040,-849.94,0.0001589,2]
[323220379,1713817962049,-965.68,0.0001589,2]
[323220380,1713817962059,-648.35,0.0001589,2]
[323220381,1713817962068,-653.61,0.0001589,2]
[323220382,1713817962077,-849.99,0.0001589,2]
[323220383,1713817962086,-872.51,0.0001589,2]
[323220384,1713817962095,-883.24,0.0001589,2]
[323220385,1713817962104,-1446.77,0.0001589,2]
[323220386,1713817962114,-668.79,0.0001589,2]
[323220387,1713817962123,-500.0,0.0001589,2]
[323220388,1713817962133,-1711.08,0.0001589,2]
[323220389,1713817962142,-586.1,0.0001589,2]
[323220390,1713817962151,-643.67,0.0001589,2]
[323220391,1713817962160,-500.0,0.0001589,2]
[323220392,1713817962170,-1611.58,0.0001589,2]
[323220393,1713817962179,-500.0,0.0001589,2]
[323220394,1713817962189,-710.31,0.0001589,2]
[323220395,1713817962198,-941.73,0.0001589,2]
[323220396,1713817962208,-1122.42,0.0001589,2]
[323220397,1713817962217,-585.05,0.0001589,2]
[323220398,1713817962226,-500.0,0.0001589,2]
[323220399,1713817962236,-758.68,0.0001589,2]
[323220400,1713817962245,-844.75,0.0001589,2]
[323220401,1713817962254,-500.0,0.0001589,2]
[323220402,1713817962263,-1156.31,0.0001589,2]
[323220403,1713817962272,-905.56,0.0001589,2]
[323220404,1713817962283,-1225.61,0.0001589,2]
[323220405,1713817962293,-500.0,0.0001589,2]
[323220406,1713817962302,-762.49,0.0001589,2]
[323220407,1713817962311,-500.0,0.0001589,2]
[323220408,1713817962320,-580.72,0.0001589,2]
[323220409,1713817962329,-1207.15,0.0001589,2]
[323220410,1713817962339,-500.0,0.0001589,2]
[323220411,1713817962348,-500.0,0.0001589,2]
[323220412,1713817962357,-512.62413243,0.0001589,2]
[323220413,1713817962366,-847.4,0.0001589,2]
[323220414,1713817962375,-500.0,0.0001589,2]
[323220415,1713817962384,-889.65,0.0001589,2]
[323220416,1713817962393,-1857.12,0.0001589,2]
[323220417,1713817962402,-1458.35,0.0001589,2]
[323220418,1713817962412,-1346.71,0.0001589,2]
[323220419,1713817962421,-797.75,0.0001589,2]
[323220420,1713817962430,-1384.06,0.0001589,2]
[323220421,1713817962440,-838.1,0.0001589,2]
[323220422,1713817962449,-500.0,0.0001589,2]
[323220423,1713817962458,-666.81,0.0001589,2]
[323220424,1713817962467,-500.0,0.0001589,2]
[323220425,1713817962476,-500.0,0.0001589,2]
[323220426,1713817962485,-562.19,0.0001589,2]
[323220427,1713817962494,-515.46,0.0001589,2]
[323220428,1713817962503,-500.0,0.0001589,2]
[323220429,1713817962512,-501.64402857,0.0001589,2]
[323220430,1713817962521,-500.0,0.0001589,2]
[323220431,1713817962533,-1234.42,0.0001589,2]
[323220432,1713817962542,-1329.82,0.0001589,2]
[323220433,1713817962551,-500.0,0.0001589,2]
[323220434,1713817962560,-982.2,0.0001589,2]
[323220435,1713817962569,-500.0,0.0001589,2]
[323220436,1713817962578,-2343.61,0.0001589,2]
[323220437,1713817962587,-1458.64,0.0001589,2]
[323220438,1713817962597,-500.0,0.0001589,2]
[323220439,1713817962606,-847.85,0.0001589,2]
[323220440,1713817962615,-500.0,0.0001589,2]
[323220441,1713817962624,-1545.79,0.0001589,2]
[323220442,1713817962633,-3597.84,0.0001589,2]
[323220443,1713817962643,-715.1,0.0001589,2]
[323220444,1713817962652,-1733.17,0.0001589,2]
[323220445,1713817962662,-1489.81,0.0001589,2]
[323220446,1713817962671,-1331.5,0.0001589,2]
[323220447,1713817962680,-500.0,0.0001589,2]
[323220448,1713817962689,-1524.01,0.0001589,2]
[323220449,1713817962698,-500.0,0.0001589,2]
[323220450,1713817962707,-1445.52,0.0001589,2]
[323220451,1713817962716,-521.23,0.0001589,2]
[323220452,1713817962725,-1681.34,0.0001589,2]
[323220453,1713817962735,-278.90675996,0.0001589,2]
[323220454,1713817962745,-1162.45,0.0001589,2]
[323220455,1713817962754,-1395.37,0.0001589,2]
[323220456,1713817962763,-619.96,0.0001589,2]
[323220457,1713817962772,-255.26,0.0001589,2]
[323220458,1713817962783,-500.0,0.0001589,2]
[323220459,1713817962792,-850.51,0.0001589,2]
[323220460,1713817962802,-281.88949431,0.0001589,2]
[323220461,1713817962812,-500.0,0.0001589,2]
[323220462,1713817962821,-651.79,0.0001589,2]
[323220463,1713817962831,-500.0,0.0001589,2]
[323220464,1713817962840,-1280.9,0.0001589,2]
[323220465,1713817962849,-500.0,0.0001589,2]
[323220466,1713817962858,-1459.47,0.0001589,2]
[323220467,1713817962867,-500.0,0.0001589,2]
[323220468,1713817962879,-534.9,0.0001589,2]
[323220469,1713817962887,-500.0,0.0001589,2]
[323220470,1713817962897,-500.0,0.0001589,2]
[323220471,1713817962906,-538.6,0.0001589,2]
[323220472,1713817962916,-500.0,0.0001589,2]
[323220473,1713817962924,-1610.79,0.0001589,2]
[323220474,1713817962934,-500.0,0.0001589,2]
[323220475,1713817962944,-537.01,0.0001589,2]
[323220476,1713817962953,-514.88,0.0001589,2]
[323220477,1713817962963,-500.0,0.0001589,2]
[323220478,1713817962972,-1363.17,0.0001589,2]
[323220479,1713817962982,-786.16,0.0001589,2]
[323220480,1713817962991,-746.38,0.0001589,2]
[323220481,1713817963000,-788.48,0.0001589,2]
[323220482,1713817963010,-500.0,0.0001589,2]
[323220483,1713817963019,-1371.5,0.0001589,2]
[323220484,1713817963029,-500.0,0.0001589,2]
[323220485,1713817963039,-572.35,0.0001589,2]
[323220486,1713817963048,-500.0,0.0001589,2]
[323220487,1713817963058,-1080.61,0.0001589,2]
[323220488,1713817963067,-500.0,0.0001589,2]
[323220489,1713817963077,-1639.44,0.0001589,2]
[323220490,1713817963086,-927.48,0.0001589,2]
[323220491,1713817963095,-2417.44,0.0001589,2]
[323220492,1713817963105,-1053.33,0.0001589,2]
[323220493,1713817963114,-820.45,0.0001589,2]
[323220494,1713817963123,-500.0,0.0001589,2]
[323220495,1713817963133,-500.0,0.0001589,2]
[323220496,1713817963142,-616.6,0.0001589,2]
[323220497,1713817963151,-1496.35,0.0001589,2]
[323220498,1713817963161,-500.0,0.0001589,2]
[323220499,1713817963170,-1901.34,0.0001589,2]
[323220500,1713817963179,-1504.69,0.0001589,2]
[323220501,1713817963188,-531.85,0.0001589,2]
[323220502,1713817963197,-1164.49,0.0001589,2]
[323220503,1713817963207,-549.16,0.0001589,2]
[323220504,1713817963218,-1596.3,0.0001589,2]
[323220505,1713817963227,-1438.6,0.0001589,2]
[323220506,1713817963237,-500.0,0.0001589,2]
[323220507,1713817963246,-1493.64,0.0001589,2]
[323220508,1713817963255,-693.72,0.0001589,2]
[323220509,1713817963264,-500.0,0.0001589,2]
[323220510,1713817963274,-889.74,0.0001589,2]
[323220511,1713817963285,-1296.17,0.0001589,2]
[323220512,1713817963294,-1184.52,0.0001589,2]
[323220513,1713817963303,-1024.32,0.0001589,2]
[323220514,1713817963312,-1243.7,0.0001589,2]
[323220515,1713817963321,-675.02,0.0001589,2]
[323220516,1713817963330,-500.0,0.0001589,2]
[323220517,1713817963339,-2073.0,0.0001589,2]
[323220518,1713817963349,-1364.07,0.0001589,2]
[323220519,1713817963358,-1245.39,0.0001589,2]
[323220520,1713817963367,-500.0,0.0001589,2]
[323220521,1713817963375,-500.0,0.0001589,2]
[323220522,1713817963384,-333.67587635,0.0001589,2]
[323220523,1713817963393,-580.78128264,0.0001589,2]
[323220524,1713817963402,-1343.23,0.0001589,2]
[323220525,1713817963411,-785.15,0.0001589,2]
[323220526,1713817963421,-500.0,0.0001589,2]
[323220527,1713817963431,-1627.92,0.0001589,2]
[323220528,1713817963440,-1215.57,0.0001589,2]
[323220529,1713817963450,-1663.91,0.0001589,2]
[323220530,1713817963459,-500.0,0.0001589,2]
[323220531,1713817963468,-500.0,0.0001589,2]
[323220532,1713817963477,-1013.21,0.0001589,2]
[323220533,1713817963486,-500.0,0.0001589,2]
[323220534,1713817963495,-1496.62,0.0001589,2]
[323220535,1713817963504,-781.7,0.0001589,2]
[323220536,1713817963513,-1208.61,0.0001589,2]
[323220537,1713817963522,-1291.68,0.0001589,2]
[323220538,1713817963531,-500.0,0.0001589,2]
[323220539,1713817963540,-1167.1,0.0001589,2]
[323220540,1713817963549,-636.48,0.0001589,2]
[323220541,1713817963557,-979.58,0.0001589,2]
[323220542,1713817963566,-751.72,0.0001589,2]
[323220543,1713817963575,-1192.84,0.0001589,2]
[323220544,1713817963583,-507.91,0.0001589,2]
[323220545,1713817963592,-1367.4,0.0001589,2]
[323220546,1713817963602,-1643.75,0.0001589,2]
[323220547,1713817963612,-525.05,0.0001589,2]
[323220548,1713817963621,-1037.47,0.0001589,2]
[323220549,1713817963630,-500.0,0.0001589,2]
[323220550,1713817963638,-1478.09,0.0001589,2]
[323220551,1713817963648,-535.15,0.0001589,2]
[323220552,1713817963657,-500.0,0.0001589,2]
[323220553,1713817963666,-504.89,0.0001589,2]
[323220554,1713817963677,-627.98,0.0001589,2]
[323220555,1713817963685,-1198.94,0.0001589,2]
[323220556,1713817963694,-849.45,0.0001589,2]
[323220557,1713817963703,-1578.31,0.0001589,2]
[323220558,1713817963712,-2383.31,0.0001589,2]
[323220559,1713817963721,-2746.92,0.0001589,2]
[323220560,1713817963730,-505.03323467,0.0001589,2]
[323220561,1713817963739,-500.0,0.0001589,2]
[323220562,1713817963749,-1045.49,0.0001589,2]
[323220563,1713817963758,-500.0,0.0001589,2]
[323220564,1713817963767,-1276.4,0.0001589,2]
[323220565,1713817963777,-1445.62,0.0001589,2]
[323220566,1713817963786,-1072.72,0.0001589,2]
[323220567,1713817963795,-500.0,0.0001589,2]
[323220568,1713817963804,-500.0,0.0001589,2]
[323220569,1713817963814,-3284.68,0.0001589,2]
[323220570,1713817963823,-500.0,0.0001589,2]
[323220571,1713817963832,-2296.08,0.0001589,2]
[323220572,1713817963841,-851.02,0.0001589,2]
[323220573,1713817963850,-1106.72,0.0001589,2]
[323220574,1713817963859,-500.0,0.0001589,2]
[323220575,1713817963868,-788.12,0.0001589,2]
[323220576,1713817963880,-1533.64,0.0001589,2]
[323220577,1713817963890,-2404.29,0.0001589,2]
[323220578,1713817963899,-1657.26,0.0001589,2]
[323220579,1713817963908,-500.0,0.0001589,2]
[323220580,1713817963918,-2538.83,0.0001589,2]
[323220581,1713817963927,-500.0,0.0001589,2]
[323220582,1713817963936,-500.0,0.0001589,2]
[323220583,1713817963945,-552.91,0.0001589,2]
[323220584,1713817963956,-1596.02,0.0001589,2]
[323220585,1713817963965,-1577.46,0.0001589,2]
[323220586,1713817963974,-500.0,0.0001589,2]
[323220587,1713817963984,-1894.81,0.0001589,2]
[323220588,1713817963994,-2000.81,0.0001589,2]
[323220589,1713817964003,-1468.28,0.0001589,2]
[323220590,1713817964012,-595.04,0.0001589,2]
[323220591,1713817964021,-1219.08,0.0001589,2]
[323220592,1713817964031,-881.21,0.0001589,2]
[323220593,1713817964040,-2218.86,0.0001589,2]
[323220594,1713817964050,-533.19,0.0001589,2]
[323220595,1713817964059,-500.0,0.0001589,2]
[323220596,1713817964068,-934.67,0.0001589,2]
[323220597,1713817964077,-525.62,0.0001589,2]
[323220598,1713817964086,-500.0,0.0001589,2]
[323220599,1713817964095,-702.91,0.0001589,2]
[323220600,1713817964105,-3676.74,0.0001589,2]
[323220601,1713817964114,-548.67,0.0001589,2]
[323220602,1713817964123,-500.0,0.0001589,2]
[323220603,1713817964132,-1527.36,0.0001589,2]
[323220604,1713817964143,-2497.52,0.0001589,2]
[323220605,1713817964152,-1077.98,0.0001589,2]
[323220606,1713817964161,-1214.09,0.0001589,2]
[323220607,1713817964170,-960.51,0.0001589,2]
[323220608,1713817964179,-1969.14,0.0001589,2]
[323220609,1713817964189,-1099.35,0.0001589,2]
[323220610,1713817964198,-1706.31,0.0001589,2]
[323220611,1713817964207,-1214.51,0.0001589,2]
[323220612,1713817964217,-837.97,0.0001589,2]
[323220613,1713817964226,-500.0,0.0001589,2]
[323220614,1713817964235,-500.0,0.0001589,2]
[323220615,1713817964244,-1339.69,0.0001589,2]
[323220616,1713817964253,-2687.48,0.0001589,2]
[323220617,1713817964262,-1917.71,0.0001589,2]
[323220618,1713817964271,-500.0,0.0001589,2]
[323220619,1713817964281,-795.76,0.0001589,2]
[323220620,1713817964290,-500.0,0.0001589,2]
[323220621,1713817964299,-500.0,0.0001589,2]
[323220622,1713817964308,-1253.15,0.0001589,2]
[323220623,1713817964317,-1479.38,0.0001589,2]
[323220624,1713817964326,-946.21,0.0001589,2]
[323220625,1713817964336,-755.1,0.0001589,2]
[323220626,1713817964345,-500.0,0.0001589,2]
[323220627,1713817964354,-705.28,0.0001589,2]
[323220628,1713817964363,-856.04,0.0001589,2]
[323220629,1713817964372,-500.0,0.0001589,2]
[323220630,1713817964381,-1065.24,0.0001589,2]
[323220631,1713817964391,-1085.95,0.0001589,2]
[323220632,1713817964401,-586.95,0.0001589,2]
[323220633,1713817964410,-3909.96,0.0001589,2]
[323220634,1713817964419,-806.76,0.0001589,2]
[323220635,1713817964428,-1318.24,0.0001589,2]
[323220636,1713817964437,-1254.05,0.0001589,2]
[323220637,1713817964446,-956.54,0.0001589,2]
[323220638,1713817964455,-1335.71,0.0001589,2]
[323220639,1713817964464,-1092.89,0.0001589,2]
[323220640,1713817964473,-1047.55,0.0001589,2]
[323220641,1713817964483,-605.32,0.0001589,2]
[323220642,1713817964492,-500.0,0.0001589,2]
[323220643,1713817964502,-1295.55,0.0001589,2]
[323220644,1713817964511,-2415.41,0.0001589,2]
[323220645,1713817964520,-630.63,0.0001589,2]
[323220646,1713817964529,-2338.02,0.0001589,2]
[323220647,1713817964539,-633.15,0.0001589,2]
[323220648,1713817964547,-1073.37,0.0001589,2]
[323220649,1713817964557,-500.0,0.0001589,2]
[323220650,1713817964567,-723.42,0.0001589,2]
[323220651,1713817964576,-988.41,0.0001589,2]
[323220652,1713817964586,-1045.44,0.0001589,2]
[323220653,1713817964595,-2293.72,0.0001589,2]
[323220654,1713817964605,-1265.46,0.0001589,2]
[323220655,1713817964614,-561.76,0.0001589,2]
[323220656,1713817964624,-648.54,0.0001589,2]
[323220657,1713817964633,-500.0,0.0001589,2]
[323220658,1713817964643,-1423.76,0.0001589,2]
[323220659,1713817964653,-754.54,0.0001589,2]
[323220660,1713817964663,-766.12,0.0001589,2]
[323220661,1713817964672,-1066.26,0.0001589,2]
[323220662,1713817964681,-730.36,0.0001589,2]
[323220663,1713817964691,-1476.18,0.0001589,2]
[323220664,1713817964700,-630.54,0.0001589,2]
[323220665,1713817964709,-1555.08,0.0001589,2]
[323220666,1713817964718,-1064.89,0.0001589,2]
[323220667,1713817964728,-1952.11,0.0001589,2]
[323220668,1713817964739,-909.66,0.0001589,2]
[323220669,1713817964750,-500.0,0.0001589,2]
[323220670,1713817964759,-500.0,0.0001589,2]
[323220671,1713817964769,-801.08,0.0001589,2]
[323220672,1713817964779,-2542.4,0.0001589,2]
[323220673,1713817964789,-1323.06,0.0001589,2]
[323220674,1713817964798,-580.66,0.0001589,2]
[323220675,1713817964808,-1009.86,0.0001589,2]
[323220676,1713817964818,-685.24,0.0001589,2]
[323220677,1713817964828,-996.9,0.0001589,2]
[323220678,1713817964838,-751.49,0.0001589,2]
[323220679,1713817964847,-1254.19,0.0001589,2]
[323220680,1713817964857,-860.39,0.0001589,2]
[323220681,1713817964867,-4409.84,0.0001589,2]
[323220682,1713817964879,-513.13,0.0001589,2]
[323220683,1713817964889,-605.11,0.0001589,2]
[323220684,1713817964898,-1437.23,0.0001589,2]
[323220685,1713817964908,-1024.83,0.0001589,2]
[323220686,1713817964919,-794.18,0.0001589,2]